fUSD/lending_fUSD_20260406
["ID","MTS","AMOUNT","RATE_DAILY","PERIOD"]
[419931716,1775515846493,-749.78250185,0.0001466,2]
[419931717,1775515846502,-1500.0,0.00014668,2]
[419931718,1775515846511,-1000.0,0.00014673,2]
[419931720,1775515846520,-152.0,0.00014674,15]
[419931721,1775515846529,-166.66,0.00014696,2]
[419931722,1775515846538,-785.79,0.00014699,2]
[419931723,1775515846547,-162.0,0.0001472,2]
[419931724,1775515846556,-2811.0,0.0001472,2]
[419931725,1775515846565,-1573.0,0.0001472,2]
[419931726,1775515846574,-162.0,0.0001472,2]
[419931727,1775515846582,-1573.0,0.0001472,2]
[419931728,1775515846592,-1573.0,0.0001472,2]
[419931729,1775515846600,-1573.0,0.0001472,2]
[419931730,1775515846609,-1573.0,0.0001472,2]
[419931731,1775515846618,-1165.0,0.0001472,2]
[419931732,1775515846628,-1600.0,0.00014731,2]
[419931733,1775515846637,-4173.95538241,0.00014737,2]
[419931734,1775515846646,-261.66,0.0001475,2]
[419931735,1775515846655,-1000.0,0.00014782,2]
[419931736,1775515846664,-150.0,0.00014792,2]
[419931737,1775515846673,-500.0,0.00014795,2]
[419931738,1775515846682,-1000.0,0.00014795,2]
[419931739,1775515846691,-421.27560565,0.00014795,2]
[419931740,1775515846700,-1500.0,0.00014795,2]
[419931741,1775515846710,-967.27624458,0.00014795,2]
[419931742,1775515846719,-1500.0,0.00014795,2]
[419931743,1775515846729,-1500.0,0.00014795,2]
[419931744,1775515846738,-507.68723107,0.00014795,2]
[419931745,1775515846747,-1002.59752033,0.00014795,2]
[419931746,1775515846757,-1500.0,0.00014795,2]
[419931747,1775515846766,-1500.0,0.00014795,2]
[419931748,1775515846775,-678.69264961,0.00014795,2]
[419931749,1775515846784,-1000.0,0.00014816,2]
[419931750,1775515846793,-467.688164,0.00014818,2]
[419931751,1775515846803,-231.513975,0.00014818,7]
[419931752,1775515846812,-273.055127,0.00014818,2]
[419931753,1775515846821,-501.0,0.00014836,3]
[419931754,1775515846830,-500.0,0.00014867,2]
[419931755,1775515846839,-500.0,0.00014867,2]
[419931756,1775515846848,-637.4,0.00014867,2]
[419931757,1775515846857,-500.0,0.00014867,2]
[419931758,1775515846866,-500.0,0.00014867,2]
[419931759,1775515846875,-500.0,0.00014867,2]
[419931760,1775515846885,-500.0,0.00014867,2]
[419931761,1775515846894,-639.79,0.00014867,2]
[419931762,1775515846904,-500.0,0.00014867,2]
[419931763,1775515846913,-500.0,0.00014867,2]
[419931764,1775515846922,-578.20924308,0.00014876,2]
[419931765,1775515846932,-201.93286099,0.00014876,2]
[419931766,1775515846941,-500.0,0.00014876,2]
[419931767,1775515846950,-695.39793187,0.00014876,2]
[419931768,1775515846959,-9211.34798985,0.00014876,2]
[419931769,1775515846968,-1377.42282659,0.00014876,2]
[419931770,1775515846978,-500.0,0.00014876,2]
[419931771,1775515846988,-500.0,0.00014876,2]
[419931772,1775515846997,-200.0,0.00014876,2]
[419931773,1775515847006,-500.0,0.00014876,2]
[419931774,1775515847015,-500.0,0.00014876,2]
[419931775,1775515847025,-500.0,0.00014876,2]
[419931776,1775515847037,-500.0,0.00014876,2]
[419931777,1775515847046,-500.0,0.00014876,2]
[419931778,1775515847055,-500.0,0.00014876,2]
[419931779,1775515847065,-500.0,0.00014876,2]
[419931780,1775515847074,-500.0,0.00014876,2]
[419931781,1775515847083,-500.0,0.00014876,2]
[419931782,1775515847092,-500.0,0.00014876,2]
[419931783,1775515847101,-1000.0,0.00014876,2]
[419931784,1775515847390,-1000.0,0.00014876,2]
[419931785,1775515847431,-750.0,0.00014876,2]
[419931786,1775515847440,-3000.0,0.00014876,2]
[419931787,1775515847449,-743.50770149,0.00014876,2]
[419931788,1775515847458,-2500.0,0.00014876,2]
[419931789,1775515847467,-174.61919141,0.00014876,2]
[419931790,1775515847476,-151.0,0.00014876,2]
[419931791,1775515847485,-668.65185757,0.00014876,2]
[419931792,1775515847495,-279.9045709,0.00014876,2]
[419931793,1775515847504,-1500.0,0.00014876,2]
[419931794,1775515847513,-1017.99332474,0.00014876,2]
[419931795,1775515847522,-1000.0,0.00014884,2]
[419931796,1775515847532,-152.0,0.00014895,16]
[419931797,1775515847541,-312.14623761,0.000149,2]
[419931798,1775515847551,-985.59,0.00014918,2]
[419931799,1775515847561,-9552.16786547,0.00014931,2]
[419931800,1775515847570,-500.0,0.00014931,2]
[419931801,1775515847580,-151.0,0.00014931,2]
[419931802,1775515847589,-291.86800938,0.00014932,2]
[419931803,1775515847598,-166.66,0.00014945,2]
[419931804,1775515847608,-1000.0,0.0001495,2]
[419931805,1775515847617,-210.3,0.00014973,2]
[419931806,1775515847627,-9905.5980765,0.00014986,2]
[419931807,1775515847636,-500.0,0.00014986,2]
[419931808,1775515847646,-151.0,0.00014986,2]
[419931809,1775515847655,-150.0,0.00014995,2]
[419931810,1775515847664,-10000.0,0.00015,15]
[419931811,1775515847674,-858.0,0.00015,15]
[419931812,1775515847683,-2734.08815341,0.00015016,2]
[419931813,1775515847693,-155.05158054,0.00015035,2]
[419931814,1775515847701,-2081.0,0.0001504,2]
[419931815,1775515847711,-500.0,0.00015041,2]
[419931816,1775515847720,-10272.10520533,0.00015041,2]
[419931817,1775515847729,-151.0,0.00015041,2]
[419931818,1775515847739,-1000.0,0.00015049,2]
[419931819,1775515847748,-338.52,0.00015057,2]
[419931820,1775515847757,-2000.0,0.00015058,2]
[419931821,1775515847766,-500.0,0.00015058,2]
[419931822,1775515847776,-30000.0,0.00015066,2]
[419931823,1775515847785,-840.61,0.00015068,2]
[419931824,1775515847794,-800.0,0.00015068,2]
[419931825,1775515847803,-500.0,0.00015096,2]
[419931826,1775515847813,-10652.17309792,0.00015096,2]
[419931827,1775515847822,-151.0,0.00015096,2]
[419931828,1775515847832,-152.0,0.00015116,17]
[419931829,1775515847841,-500.0,0.00015151,2]
[419931830,1775515847851,-11046.30350255,0.00015151,2]
[419931831,1775515847860,-151.0,0.00015151,2]
[419931832,1775515847869,-317.16,0.00015152,2]
[419931833,1775515847878,-985.59,0.00015192,2]
[419931834,1775515847888,-1148.372646,0.000152,2]
[419931835,1775515847897,-962.31706574,0.00015205,2]
[419931836,1775515847906,-500.0,0.00015206,2]
[419931837,1775515847915,-7528.69000029,0.00015206,2]
[419931838,1775515849458,-539.65978879,0.00015206,2]
[419931839,1775515849473,-1657.00582136,0.00015206,2]
[419931840,1775515850030,-1729.6611217,0.00015206,2]
[419931841,1775515850039,-151.0,0.00015206,2]
[419931842,1775515850049,-26854.46091877,0.00015207,2]
[419931843,1775515850058,-150.0,0.00015208,2]
[419931844,1775515850068,-2000.0,0.00015216,2]
[419931845,1775515850077,-4906.0,0.0001522,2]
[419931846,1775515850087,-570.79309048,0.0001524,2]
[419931847,1775515850096,-962.31706574,0.0001526,2]
[419931848,1775515850105,-11878.85235123,0.00015261,2]
[419931849,1775515850115,-500.0,0.00015261,2]
[419931850,1775515850124,-151.0,0.00015261,2]
[419931851,1775515850134,-350.0,0.00015263,2]
[419931852,1775515850143,-250.0,0.0001527,2]
[419931853,1775515850152,-250.0,0.0001527,2]
[419931854,1775515850161,-250.0,0.0001527,2]
[419931855,1775515850170,-250.0,0.0001527,2]
[419931856,1775515850179,-250.0,0.0001527,2]
[419931857,1775515850188,-250.0,0.0001527,2]
[419931858,1775515850197,-250.0,0.0001527,2]
[419931859,1775515850206,-336.0,0.0001527,2]
[419931860,1775515850215,-150.0,0.00015277,2]
[419931861,1775515850224,-3797.0,0.00015297,2]
[419931862,1775515850233,-1500.0,0.000153,5]
[419931863,1775515850249,-1950.0,0.0001531,2]
[419931864,1775515850258,-1950.0,0.0001531,2]
[419931865,1775515850267,-1950.0,0.0001531,2]
[419931866,1775515850277,-1950.0,0.0001531,2]
[419931867,1775515850287,-1950.0,0.0001531,2]
[419931868,1775515850296,-1950.0,0.0001531,2]
[419931869,1775515850306,-1950.0,0.0001531,2]
[419931870,1775515850315,-1950.0,0.0001531,2]
[419931871,1775515850325,-1950.0,0.0001531,2]
[419931872,1775515850334,-1840.0,0.0001531,2]
[419931873,1775515850344,-3797.0,0.00015311,2]
[419931874,1775515850353,-962.31706574,0.00015315,2]
[419931875,1775515850363,-12318.36988823,0.00015316,2]
[419931876,1775515850372,-500.0,0.00015316,2]
[419931877,1775515850381,-151.0,0.00015316,2]
[419931878,1775515850391,-6453.0,0.00015321,2]
[419931879,1775515850400,-150.0,0.00015324,2]
[419931880,1775515850410,-411.832968,0.00015325,7]
[419931881,1775515850419,-152.0,0.00015337,18]
[419931882,1775515850428,-500.0,0.00015342,2]
[419931883,1775515850437,-1196.79007536,0.00015342,2]
[419931884,1775515850447,-1517.22837258,0.00015342,2]
[419931885,1775515850457,-2000.0,0.00015342,2]
[419931886,1775515850467,-2000.0,0.00015342,2]
[419931887,1775515850476,-1000.0,0.00015344,2]
[419931888,1775515850487,-391.03824713,0.00015348,2]
[419931889,1775515850496,-377.13,0.00015348,2]
[419931890,1775515850508,-162.0,0.0001536,2]
[419931891,1775515850517,-2811.0,0.0001536,2]
[419931892,1775515850528,-1573.0,0.0001536,2]
[419931893,1775515850538,-162.0,0.0001536,2]
[419931894,1775515850547,-1000.0,0.00015363,2]
[419931895,1775515850557,-962.31706574,0.0001537,2]
[419931896,1775515850566,-3466.127921,0.00015371,2]
[419931897,1775515850923,-358.2035376,0.00015371,2]
[419931909,1775516744482,-294.0,9.987e-05,2]
[419931910,1775516744503,-347.86023929,9.987e-05,2]
[419931911,1775516744523,-669.72495836,9.987e-05,2]
[419931915,1775516836097,-439.27504164,9.987e-05,2]
[419931916,1775516836119,-1116.0,0.00010513,2]
[419931917,1775516836142,-493.02679851,0.000108,5]
[419931918,1775516850908,-741.30251865,0.000108,5]
[419931954,1775517032660,-560.89881792,0.0001,2]
[419931955,1775517032676,-894.35333749,0.0001,2]
[419931956,1775517032686,-777.16139027,0.0001,2]
[419931957,1775517032696,-3911.48832637,0.0001,2]
[419931958,1775517032707,-2448.0,0.000106,5]
[419931959,1775517032717,-300.0,0.00010985,2]
[419931960,1775517032726,-250.0,0.00010986,2]
[419931961,1775517032737,-300.0,0.00011,2]
[419931962,1775517032747,-300.0,0.00011,2]
[419931963,1775517032757,-150.0,0.00011065,2]
[419931964,1775517032767,-1200.0,0.00011065,2]
[419931965,1775517032778,-1116.0,0.00011066,2]
[419931966,1775517032788,-4537.17,0.00011066,2]
[419931967,1775517032797,-7336.23,0.00011066,2]
[419931968,1775517032807,-150.99,0.00011066,2]
[419931969,1775517032817,-8251.40413289,0.00011066,2]
[419931970,1775517032829,-315.42809693,0.00011066,2]
[419931971,1775517032841,-1433.15777018,0.00011066,2]
[419931972,1775517032850,-536.83261612,0.00011507,2]
[419931975,1775517040762,-1205.4,0.00011507,2]
[419931977,1775517040774,-1322.1,0.00011507,2]
[419931978,1775517040784,-1057.4,0.00011507,2]
[419931979,1775517040797,-977.61,0.00011507,2]
[419931985,1775517040870,-323.27738388,0.00011507,2]
[419931987,1775517040880,-20.17261612,0.000116,2]
[419931992,1775517040925,-129.82738388,0.000116,2]
[419931993,1775517040935,-4357.04,0.000116,2]
[419931994,1775517040944,-1116.0,0.00011649,2]
[419931995,1775517040954,-600.0,0.0001177,2]
[419931996,1775517040963,-600.0,0.0001177,2]
[419931997,1775517040973,-600.0,0.0001177,2]
[419931998,1775517040983,-600.0,0.0001177,2]
[419931999,1775517040992,-195.0,0.0001177,2]
[419932000,1775517041002,-195.0,0.0001177,2]
[419932001,1775517041011,-195.0,0.0001177,2]
[419932002,1775517041020,-195.0,0.0001177,2]
[419932003,1775517041031,-195.0,0.0001177,2]
[419932004,1775517041040,-250.0,0.0001177,2]
[419932005,1775517041049,-2000.0,0.00011821,2]
[419932006,1775517041059,-778.4321945,0.00011927,2]
[419932007,1775517041071,-721.5678055,0.00011927,2]
[419932008,1775517041080,-500.0,0.0001194,2]
[419932009,1775517041090,-300.0,0.00012071,2]
[419932010,1775517041100,-600.0,0.00012082,2]
[419932011,1775517041110,-250.0,0.00012082,2]
[419932012,1775517041120,-255.0,0.00012117,2]
[419932013,1775517041129,-1680.0,0.00012172,2]
[419932014,1775517041139,-1116.0,0.00012262,2]
[419932015,1775517041149,-200.0,0.00012332,2]
[419932016,1775517041158,-190.3,0.00012497,2]
[419932017,1775517041168,-372.0,0.00012555,2]
[419932018,1775517041178,-1116.0,0.00012875,2]
[419932019,1775517041187,-168.4818,0.000129,2]
[419932020,1775517041198,-500.0,0.00012992,2]
[419932021,1775517041208,-500.0,0.00012992,2]
[419932022,1775517041218,-500.0,0.00012992,2]
[419932023,1775517041227,-500.0,0.00012992,2]
[419932024,1775517041236,-500.0,0.00012992,2]
[419932025,1775517041246,-495.01548166,0.00012992,2]
[419932026,1775517041256,-200.0,0.00012992,2]
[419932027,1775517041266,-500.0,0.00012992,2]
[419932028,1775517041275,-151.0,0.00012992,2]
[419932029,1775517041285,-151.0,0.00012992,2]
[419932030,1775517041295,-151.0,0.00012992,2]
[419932031,1775517041304,-151.0,0.00012992,2]
[419932032,1775517041314,-151.0,0.00012992,2]
[419932033,1775517041323,-151.0,0.00012992,2]
[419932034,1775517041333,-151.0,0.00012992,2]
[419932035,1775517041343,-151.0,0.00012992,2]
[419932036,1775517041352,-151.0,0.00012992,2]
[419932037,1775517041365,-151.0,0.00012992,2]
[419932038,1775517041374,-151.0,0.00012992,2]
[419932039,1775517041384,-151.0,0.00012992,2]
[419932040,1775517041394,-151.0,0.00012992,2]
[419932041,1775517041404,-151.0,0.00012992,2]
[419932042,1775517041414,-151.0,0.00012992,2]
[419932044,1775517041424,-151.0,0.00012992,2]
[419932046,1775517041433,-151.0,0.00012992,2]
[419932048,1775517041442,-151.0,0.00012992,2]
[419932050,1775517041452,-151.0,0.00012992,2]
[419932052,1775517041462,-151.0,0.00012992,2]
[419932054,1775517041471,-151.0,0.00012992,2]
[419932056,1775517041481,-151.0,0.00012992,2]
[419932058,1775517041491,-151.0,0.00012992,2]
[419932060,1775517041500,-151.0,0.00012992,2]
[419932062,1775517041510,-151.0,0.00012992,2]
[419932100,1775517041919,-151.0,0.00012992,2]
[419932102,1775517041942,-175.27514659,0.00012992,2]
[419932103,1775517041951,-151.0,0.00012992,2]
[419932104,1775517041960,-151.0,0.00012992,2]
[419932105,1775517041970,-151.0,0.00012992,2]
[419932106,1775517041980,-151.0,0.00012992,2]
[419932107,1775517041990,-151.0,0.00012992,2]
[419932108,1775517041999,-151.0,0.00012992,2]
[419932109,1775517042009,-500.0,0.00012992,2]
[419932110,1775517042018,-500.0,0.00012992,2]
[419932111,1775517042027,-500.0,0.00012992,2]
[419932112,1775517042036,-500.0,0.00012992,2]
[419932113,1775517042046,-500.0,0.00012992,2]
[419932114,1775517042056,-500.0,0.00012992,2]
[419932115,1775517042065,-500.0,0.00012992,2]
[419932116,1775517042074,-500.0,0.00012992,2]
[419932117,1775517042084,-500.0,0.00012992,2]
[419932118,1775517042093,-500.0,0.00012992,2]
[419932119,1775517042102,-500.0,0.00012992,2]
[419932120,1775517042113,-500.0,0.00012992,2]
[419932121,1775517042122,-500.0,0.00012992,2]
[419932122,1775517042132,-250.0,0.00013,2]
[419932123,1775517042141,-16092.3183417,0.00013,7]
[419932124,1775517042155,-336.21639651,0.00013,7]
[419932125,1775517042166,-2288.16982001,0.00013,7]
[419932135,1775517043127,-227.58909335,0.00013,7]
[419932136,1775517043143,-3572.87009396,0.00013,7]
[419932137,1775517043156,-2093.68970089,0.00013,7]
[419932138,1775517043168,-564.0886184,0.00013,7]
[419932139,1775517043212,-2604.94395298,0.00013,7]
[419932140,1775517043224,-362.46079572,0.00013,7]
[419932141,1775517043236,-5997.650773,0.00013,7]
[419932142,1775517043248,-5941.28744073,0.00013,7]
[419932143,1775517043259,-11852.04757903,0.00013,7]
[419932144,1775517043271,-9366.81496053,0.00013,7]
[419932145,1775517043281,-192.52253303,0.00013,2]
[419932146,1775517043292,-308.47746697,0.00013,2]
[419932147,1775517043303,-433.0,0.00013267,2]
[419932148,1775517043313,-2000.0,0.00013299,2]
[419932149,1775517043323,-160.0,0.00013329,2]
[419932150,1775517043333,-160.0,0.00013329,2]
[419932151,1775517043343,-2351.0,0.00013389,2]
[419932152,1775517043352,-17152.0331,0.00013498,2]
[419932153,1775517043363,-1116.0,0.00013519,2]
[419932154,1775517043373,-291.86800938,0.0001354,2]
[419932155,1775517043383,-1660.9685,0.00013561,2]
[419932156,1775517043394,-2500.0,0.00013561,2]
[419932157,1775517043404,-23909.66626506,0.00013598,2]
[419932158,1775517043415,-16956.98665859,0.00013661,2]
[419932159,1775517043427,-10077.89671165,0.00013661,2]
[419932160,1775517043439,-638.55537377,0.00013661,2]
[419932161,1775517043486,-1898.96099122,0.00013661,2]
[419932162,1775517043498,-98743.94486477,0.00013661,2]
[419932163,1775517043507,-500.0,0.00013698,2]
[419932164,1775517043516,-500.0,0.00013698,2]
[419932165,1775517043526,-500.0,0.00013698,2]
[419932166,1775517043536,-500.0,0.00013698,2]
[419932167,1775517043546,-500.0,0.00013698,2]
[419932168,1775517043556,-500.0,0.00013698,2]
[419932169,1775517043566,-500.0,0.00013698,2]
[419932170,1775517043576,-637.4,0.00013698,2]
[419932171,1775517043586,-500.0,0.00013698,2]
[419932172,1775517043596,-500.0,0.00013698,2]
[419932173,1775517043606,-500.0,0.00013698,2]
[419932174,1775517043616,-500.0,0.00013698,2]
[419932175,1775517043626,-500.0,0.00013698,2]
[419932176,1775517043637,-506.53549507,0.00013698,2]
[419932177,1775517043646,-639.79,0.00013698,2]
[419932178,1775517043656,-150.0,0.00013699,2]
[419932179,1775517043666,-150.0,0.00013699,2]
[419932180,1775517043676,-1446.63,0.00013699,2]
[419932181,1775517043686,-200.0,0.00013699,2]
[419932182,1775517043696,-2155.85,0.00013699,2]
[419932183,1775517043705,-157.29,0.00013699,2]
[419932184,1775517043715,-611.05,0.00013727,2]
[419932185,1775517043724,-1945.75507018,0.00013754,2]
[419932186,1775517043745,-6312.51,0.00013761,2]
[419932187,1775517043756,-16884.85697381,0.00013773,2]
[419932188,1775517043766,-197.77789421,0.00013837,2]
[419932189,1775517043775,-500.0,0.00013846,2]
[419932190,1775517043785,-500.0,0.00013846,2]
[419932191,1775517043795,-609.09277529,0.00013846,2]
[419932192,1775517043804,-266.55143098,0.00013846,2]
[419932193,1775517043814,-268.66281508,0.00013846,2]
[419932194,1775517043824,-500.0,0.00013846,2]
[419932195,1775517043834,-500.0,0.00013846,2]
[419932196,1775517043844,-500.0,0.00013846,2]
[419932197,1775517043853,-195.05699266,0.00013846,2]
[419932198,1775517043864,-428.03522177,0.00013846,2]
[419932199,1775517043874,-443.61429513,0.00013846,2]
[419932200,1775517043884,-500.0,0.00013846,2]
[419932201,1775517043894,-500.0,0.00013846,2]
[419932202,1775517043904,-500.0,0.00013846,2]
[419932203,1775517043914,-500.0,0.00013846,2]
[419932204,1775517043924,-500.0,0.00013846,2]
[419932205,1775517043934,-500.0,0.00013846,2]
[419932206,1775517043944,-500.0,0.00013846,2]
[419932207,1775517043953,-500.0,0.00013846,2]
[419932208,1775517043963,-500.0,0.00013846,2]
[419932209,1775517043974,-500.0,0.00013846,2]
[419932210,1775517043984,-500.0,0.00013846,2]
[419932211,1775517043994,-500.0,0.00013846,2]
[419932212,1775517044005,-500.0,0.00013846,2]
[419932213,1775517044015,-500.0,0.00013846,2]
[419932214,1775517044025,-648.40200908,0.00013846,2]
[419932215,1775517044035,-500.0,0.00013846,2]
[419932216,1775517044045,-500.0,0.00013846,2]
[419932217,1775517044055,-500.0,0.00013846,2]
[419932218,1775517044065,-500.0,0.00013846,2]
[419932219,1775517044075,-500.0,0.00013846,2]
[419932220,1775517044085,-500.0,0.00013846,2]
[419932221,1775517044095,-500.0,0.00013846,2]
[419932222,1775517044105,-500.0,0.00013846,2]
[419932223,1775517044117,-500.0,0.00013846,2]
[419932224,1775517044127,-500.0,0.00013846,2]
[419932225,1775517044137,-500.0,0.00013846,2]
[419932226,1775517044148,-500.0,0.00013846,2]
[419932227,1775517044158,-500.0,0.00013846,2]
[419932228,1775517044168,-500.0,0.00013846,2]
[419932229,1775517044178,-500.0,0.00013846,2]
[419932230,1775517044188,-500.0,0.00013846,2]
[419932231,1775517044199,-250.0,0.00013846,2]
[419932232,1775517044208,-500.0,0.00013846,2]
[419932233,1775517044218,-637.73934469,0.00013846,2]
[419932234,1775517044229,-500.0,0.00013846,2]
[419932235,1775517044239,-500.0,0.00013846,2]
[419932236,1775517044255,-500.0,0.00013846,2]
[419932237,1775517044266,-500.0,0.00013846,2]
[419932238,1775517044276,-500.0,0.00013846,2]
[419932239,1775517044286,-500.0,0.00013846,2]
[419932240,1775517044296,-500.0,0.00013846,2]
[419932241,1775517044306,-500.0,0.00013846,2]
[419932242,1775517044316,-500.0,0.00013846,2]
[419932243,1775517044327,-500.0,0.00013846,2]
[419932244,1775517044337,-500.0,0.00013846,2]
[419932245,1775517044348,-500.0,0.00013846,2]
[419932246,1775517044359,-500.0,0.00013846,2]
[419932247,1775517044369,-500.0,0.00013846,2]
[419932248,1775517044379,-503.11279544,0.00013846,2]
[419932249,1775517044390,-500.0,0.00013846,2]
[419932250,1775517044399,-500.0,0.00013846,2]
[419932251,1775517044409,-500.0,0.00013846,2]
[419932252,1775517044419,-300.0,0.00013846,2]
[419932253,1775517044429,-103125.65661993,0.00013847,2]
[419932254,1775517044501,-1331.50731239,0.00013847,2]
[419932255,1775517044528,-11459.67674882,0.00013847,2]
[419932256,1775517044541,-426.20452115,0.00013847,2]
[419932257,1775517044572,-119617.13987505,0.00013847,2]
[419932258,1775517044585,-1293.1702,0.00013847,2]
[419932259,1775517044732,-452.77341858,0.00013698,2]
[419932267,1775517046072,-445.3297252,0.00013698,2]
[419932268,1775517046568,-3412.80173374,0.00013698,2]
[419932269,1775517046704,-1309.1028729,0.00013698,2]
[419932270,1775517046714,-2057.58181954,0.00013698,2]
[419932271,1775517046724,-15190.54341086,0.00013847,2]
[419932272,1775517046736,-653.74439782,0.00013847,2]
[419932273,1775517046747,-3485.83114502,0.00013847,2]
[419932274,1775517046769,-1901.62763267,0.00013847,2]
[419932275,1775517046780,-2343.06883172,0.00013847,2]
[419932276,1775517046799,-4256.21005797,0.00013847,2]
[419932284,1775517050133,-157.52,0.00013699,2]
[419932285,1775517050143,-530.78,0.00013847,2]
[419932286,1775517050170,-32642.18124131,0.00013847,2]
[419932288,1775517050192,-32.6372722,0.00013847,2]
[419932290,1775517050212,-279.924521,0.00013847,2]
[419932291,1775517050224,-2590.96888089,0.00013847,2]
[419932292,1775517050312,-13435.36300989,0.00013847,2]
[419932293,1775517050484,-565.20391192,0.00013847,2]
[419932294,1775517050541,-10543.63422064,0.00013847,2]
[419932299,1775517079335,335.02,7.781e-05,7]
[419932316,1775518232212,-169.35,0.000101,2]
[419932317,1775518232222,-467.0,0.000105,5]
[419932318,1775518232231,-600.0,0.00010964,2]
[419932319,1775518232240,-298.16059017,0.00010964,2]
[419932320,1775518232249,-1200.0,0.00011109,2]
[419932321,1775518232259,-300.0,0.00011109,2]
[419932322,1775518232268,-1200.0,0.00011109,2]
[419932323,1775518232278,-250.0,0.0001111,2]
[419932324,1775518232288,-600.0,0.0001111,2]
[419932325,1775518232297,-195.0,0.0001111,2]
[419932326,1775518232306,-195.0,0.0001111,2]
[419932327,1775518232316,-600.0,0.0001111,2]
[419932328,1775518232325,-600.0,0.0001111,2]
[419932329,1775518232334,-195.0,0.0001111,2]
[419932330,1775518232343,-195.0,0.0001111,2]
[419932331,1775518232354,-195.0,0.0001111,2]
[419932332,1775518232363,-500.0,0.00012,2]
[419932333,1775518232372,-200.0,0.00012,2]
[419932334,1775518232382,-191.89,0.0001215,2]
[419932335,1775518232392,-160.61,0.00012157,2]
[419932336,1775518232402,-150.0,0.00012189,2]
[419932337,1775518232411,-215.67,0.00012189,2]
[419932338,1775518232420,-150.0,0.000122,2]
[419932339,1775518232430,-420.0,0.00012206,2]
[419932341,1775518232440,-1680.0,0.0001222,2]
[419932343,1775518232449,-150.0,0.00012251,2]
[419932345,1775518232459,-1977.46288874,0.00012251,2]
[419932348,1775518232493,-829.98709775,0.00012251,2]
[419932349,1775518232506,-1195.6634094,0.00012251,2]
[419932350,1775518232517,-1315.3,0.00012251,2]
[419932351,1775518232528,-1046.2498,0.00012251,2]
[419932352,1775518232539,-649.88,0.00012251,2]
[419932360,1775518241016,-1219.39680411,0.00012251,2]
[419932361,1775518241026,-150.99,0.00012251,2]
[419932362,1775518241036,-249.22,0.00012269,2]
[419932363,1775518241046,-150.99,0.00012269,2]
[419932364,1775518241056,-196.06,0.0001234,2]
[419932365,1775518241066,-500.0,0.00012356,2]
[419932366,1775518241076,-483.65,0.00012539,2]
[419932367,1775518241086,-250.0,0.00012595,2]
[419932368,1775518241097,-339.9,0.00012693,2]
[419932369,1775518241107,-429.23,0.00012949,2]
[419932370,1775518241116,-150.0,0.00012999,2]
[419932371,1775518241126,-250.0,0.00013,2]
[419932372,1775518241136,-16454.34956632,0.00013,7]
[419932373,1775518241146,-501.0,0.00013,2]
[419932374,1775518241156,-1280.65471337,0.00013155,2]
[419932375,1775518241180,-1450.79075461,0.00013155,2]
[419932376,1775518241198,-2003.16188398,0.00013155,2]
[419932416,1775518243040,-265.39264804,0.00013155,2]
[419932417,1775518243050,-503.0,0.00013178,2]
[419932418,1775518243060,-152.0,0.000132,3]
[419932419,1775518243069,-200.0,0.00013222,2]
[419932420,1775518243079,-500.0,0.00013222,2]
[419932422,1775518243088,-151.0,0.00013222,2]
[419932424,1775518243098,-151.0,0.00013222,2]